[Event "Titled Tuesday Blitz March 22 Early 2022"]
[White "Lewtak, Damian"]
[Black "Sadovsky, Artem"]
[WhiteFideId "1141724"]
[BlackFideId "4155840"]
[WhiteElo "2362"]
[BlackElo "2314"]
[Result "0-1"]
[Round "05"]
[TimeControl "180+1"]
[Date "2022.03.22"]
[WhiteClock "0:02:04"]
[BlackClock "0:00:04"]

1. d4 {[%clk 0:03:00]}  g6 {[%clk 0:00:51]} 2. h4 {[%clk 0:02:58]}  Bg7 {[%clk 0:00:52]} 3. h5 {[%clk 0:02:59]}  c5 {[%clk 0:00:52]} 4. c3 {[%clk 0:02:58]}  cxd4 {[%clk 0:00:52]} 5. cxd4 {[%clk 0:02:59]}  d5 {[%clk 0:00:52]} 6. Nc3 {[%clk 0:02:59]}  Nc6 {[%clk 0:00:52]} 7. h6 {[%clk 0:02:52]}  Bxd4 {[%clk 0:00:51]} 8. e3 {[%clk 0:02:48]}  Bxc3+ {[%clk 0:00:47]} 9. bxc3 {[%clk 0:02:49]}  Nf6 {[%clk 0:00:45]} 10. Nf3 {[%clk 0:02:46]}  O-O {[%clk 0:00:45]} 11. Bd3 {[%clk 0:02:46]}  e5 {[%clk 0:00:43]} 12. Bc2 {[%clk 0:02:36]}  Bg4 {[%clk 0:00:43]} 13. Qd2 {[%clk 0:02:28]}  Ne4 {[%clk 0:00:35]} 14. Bxe4 {[%clk 0:02:24]}  dxe4 {[%clk 0:00:36]} 15. Nh2 {[%clk 0:02:19]}  Be6 {[%clk 0:00:16]} 16. Qxd8 {[%clk 0:02:16]}  Rfxd8 {[%clk 0:00:17]} 17. Nf1 {[%clk 0:02:16]}  Bc4 {[%clk 0:00:12]} 18. Nd2 {[%clk 0:02:15]}  Bd3 {[%clk 0:00:13]} 19. f3 {[%clk 0:02:16]}  exf3 {[%clk 0:00:09]} 20. gxf3 {[%clk 0:02:17]}  f5 {[%clk 0:00:08]} 21. e4 {[%clk 0:02:18]}  f4 {[%clk 0:00:07]} 22. Nb3 {[%clk 0:02:17]}  b6 {[%clk 0:00:07]} 23. Bb2 {[%clk 0:02:17]}  a5 {[%clk 0:00:05]} 24. Rh2 {[%clk 0:02:14]}  a4 {[%clk 0:00:05]} 25. Nd2 {[%clk 0:02:15]}  Na5 {[%clk 0:00:05]} 26. Bc1 {[%clk 0:02:16]}  Nc4 {[%clk 0:00:05]} 27. Nxc4 {[%clk 0:02:14]}  Bxc4 {[%clk 0:00:06]} 28. Rb1 {[%clk 0:02:15]}  b5 {[%clk 0:00:05]} 29. Ba3 {[%clk 0:02:15]}  Rd3 {[%clk 0:00:05]} 30. Rd1 {[%clk 0:02:03]}  Rad8 {[%clk 0:00:04]} 31. Rf2 {[%clk 0:02:04]}  Rxd1# {[%clk 0:00:04]} 0-1


[Site "https://www.chess.com"]

[Event "Titled Tuesday Blitz March 22 Early 2022"]
[White "Ljukin, Sergei"]
[Black "Shtyka, Sergey"]
[WhiteFideId "14102200"]
[BlackFideId "4138465"]
[WhiteElo "2312"]
[BlackElo "2014"]
[Result "1-0"]
[Round "05"]
[TimeControl "180+1"]
[Date "2022.03.22"]
[WhiteClock "0:00:42"]
[BlackClock "0:00:13"]

1. e4 {[%clk 0:02:53]}  c5 {[%clk 0:02:59]} 2. Nf3 {[%clk 0:02:53]}  d6 {[%clk 0:02:59]} 3. d4 {[%clk 0:02:53]}  cxd4 {[%clk 0:02:59]} 4. Nxd4 {[%clk 0:02:54]}  Nf6 {[%clk 0:03:00]} 5. Nc3 {[%clk 0:02:54]}  g6 {[%clk 0:03:00]} 6. Be3 {[%clk 0:02:55]}  Bg7 {[%clk 0:02:59]} 7. f3 {[%clk 0:02:55]}  O-O {[%clk 0:02:59]} 8. Qd2 {[%clk 0:02:55]}  Nc6 {[%clk 0:02:59]} 9. O-O-O {[%clk 0:02:56]}  d5 {[%clk 0:02:59]} 10. Kb1 {[%clk 0:02:56]}  Rb8 {[%clk 0:02:56]} 11. Ndb5 {[%clk 0:02:48]}  a6 {[%clk 0:02:53]} 12. Na7 {[%clk 0:02:48]}  Nxa7 {[%clk 0:02:38]} 13. Bxa7 {[%clk 0:02:47]}  Ra8 {[%clk 0:02:38]} 14. Be3 {[%clk 0:02:34]}  e6 {[%clk 0:02:35]} 15. e5 {[%clk 0:02:15]}  Nd7 {[%clk 0:01:54]} 16. f4 {[%clk 0:02:15]}  f6 {[%clk 0:01:55]} 17. exf6 {[%clk 0:02:14]}  Nxf6 {[%clk 0:01:53]} 18. Be2 {[%clk 0:02:11]}  Bd7 {[%clk 0:01:52]} 19. h4 {[%clk 0:02:10]}  Be8 {[%clk 0:01:37]} 20. Bd4 {[%clk 0:01:55]}  Rc8 {[%clk 0:01:36]} 21. g4 {[%clk 0:01:46]}  Qe7 {[%clk 0:01:19]} 22. h5 {[%clk 0:01:40]}  Ne4 {[%clk 0:01:13]} 23. Nxe4 {[%clk 0:01:37]}  dxe4 {[%clk 0:01:14]} 24. Bxg7 {[%clk 0:01:16]}  Qxg7 {[%clk 0:01:13]} 25. h6 {[%clk 0:01:16]}  Qf6 {[%clk 0:01:09]} 26. Rhf1 {[%clk 0:01:15]}  Ba4 {[%clk 0:01:07]} 27. b3 {[%clk 0:01:14]}  Bc6 {[%clk 0:01:06]} 28. g5 {[%clk 0:01:13]}  Qe7 {[%clk 0:00:42]} 29. Qd4 {[%clk 0:01:11]}  e5 {[%clk 0:00:38]} 30. fxe5 {[%clk 0:01:03]}  Qxg5 {[%clk 0:00:28]} 31. e6 {[%clk 0:01:00]}  Qxh6 {[%clk 0:00:20]} 32. Bc4 {[%clk 0:00:53]}  b5 {[%clk 0:00:16]} 33. e7+ {[%clk 0:00:52]}  bxc4 {[%clk 0:00:16]} 34. exf8=Q+ {[%clk 0:00:52]}  Rxf8 {[%clk 0:00:17]} 35. Qxc4+ {[%clk 0:00:49]}  Kh8 {[%clk 0:00:14]} 36. Rxf8+ {[%clk 0:00:46]}  Qxf8 {[%clk 0:00:13]} 37. Qxc6 {[%clk 0:00:47]}  e3 {[%clk 0:00:12]} 38. Qc3+ {[%clk 0:00:46]}  Kg8 {[%clk 0:00:12]} 39. Qxe3 {[%clk 0:00:46]}  a5 {[%clk 0:00:13]} 40. Qe6+ {[%clk 0:00:42]} 1-0


[Site "https://www.chess.com"]

[Event "Titled Tuesday Blitz March 22 Early 2022"]
[White "Mangialardo, Tiago Carvalho"]
[Black "Zaksaite, Salomeja"]
[WhiteFideId "2130718"]
[BlackFideId "12801496"]
[WhiteElo "2080"]
[BlackElo "1953"]
[Result "1-0"]
[Round "05"]
[TimeControl "180+1"]
[Date "2022.03.22"]
[WhiteClock "0:00:01"]
[BlackClock "0:00:02"]

1. e4 {[%clk 0:03:00]}  c5 {[%clk 0:02:57]} 2. Nf3 {[%clk 0:03:00]}  e6 {[%clk 0:02:57]} 3. d4 {[%clk 0:03:00]}  cxd4 {[%clk 0:02:58]} 4. Nxd4 {[%clk 0:03:01]}  Nf6 {[%clk 0:02:59]} 5. Nc3 {[%clk 0:03:01]}  Nc6 {[%clk 0:02:59]} 6. Be3 {[%clk 0:03:00]}  Bb4 {[%clk 0:02:58]} 7. Bd3 {[%clk 0:02:37]}  d5 {[%clk 0:02:57]} 8. exd5 {[%clk 0:01:48]}  Nxd5 {[%clk 0:02:56]} 9. Nxc6 {[%clk 0:01:05]}  bxc6 {[%clk 0:02:48]} 10. Bd2 {[%clk 0:01:02]}  O-O {[%clk 0:02:19]} 11. O-O {[%clk 0:01:01]}  Rb8 {[%clk 0:01:07]} 12. Qh5 {[%clk 0:00:45]}  g6 {[%clk 0:01:00]} 13. Qf3 {[%clk 0:00:38]}  Qa5 {[%clk 0:00:37]} 14. Bh6 {[%clk 0:00:17]}  Re8 {[%clk 0:00:25]} 15. Nxd5 {[%clk 0:00:15]}  cxd5 {[%clk 0:00:22]} 16. Qf6 {[%clk 0:00:13]}  Bf8 {[%clk 0:00:21]} 17. Bxf8 {[%clk 0:00:07]}  Rxf8 {[%clk 0:00:22]} 18. b3 {[%clk 0:00:06]}  Ba6 {[%clk 0:00:21]} 19. Rfd1 {[%clk 0:00:04]}  Rfc8 {[%clk 0:00:19]} 20. Bxa6 {[%clk 0:00:01]}  Qxa6 {[%clk 0:00:19]} 21. Rd3 {[%clk 0:00:01]}  Rxc2 {[%clk 0:00:16]} 22. Rf3 {[%clk 0:00:02]}  Qb7 {[%clk 0:00:12]} 23. h4 {[%clk 0:00:03]}  Rbc8 {[%clk 0:00:07]} 24. h5 {[%clk 0:00:03]}  Rc1+ {[%clk 0:00:07]} 25. Rxc1 {[%clk 0:00:04]}  Rxc1+ {[%clk 0:00:07]} 26. Kh2 {[%clk 0:00:05]}  Qc7+ {[%clk 0:00:08]} 27. g3 {[%clk 0:00:04]}  Rc2 {[%clk 0:00:04]} 28. h6 {[%clk 0:00:04]}  Kf8 {[%clk 0:00:04]} 29. Re3 {[%clk 0:00:02]}  Ke8 {[%clk 0:00:03]} 30. Qh8+ {[%clk 0:00:01]}  Kd7 {[%clk 0:00:03]} 31. Qf6 {[%clk 0:00:02]}  Kd6 {[%clk 0:00:02]} 32. Qg7 {[%clk 0:00:01]} 1-0


[Site "https://www.chess.com"]

[Event "Titled Tuesday Blitz March 22 Early 2022"]
[White "Martinez Alcantara, Jose Eduardo"]
[Black "Andreikin, Dmitry"]
[WhiteFideId "3805662"]
[BlackFideId "4158814"]
[WhiteElo "2690"]
[BlackElo "2736"]
[Result "0-1"]
[Round "05"]
[TimeControl "180+1"]
[Date "2022.03.22"]
[WhiteClock "0:00:02"]
[BlackClock "0:00:16"]

1. e4 {[%clk 0:03:00]}  c5 {[%clk 0:02:59]} 2. Nf3 {[%clk 0:03:00]}  e6 {[%clk 0:03:00]} 3. c3 {[%clk 0:02:56]}  Nf6 {[%clk 0:02:59]} 4. Bd3 {[%clk 0:02:55]}  Nc6 {[%clk 0:02:53]} 5. O-O {[%clk 0:02:54]}  d5 {[%clk 0:02:49]} 6. e5 {[%clk 0:02:54]}  Nd7 {[%clk 0:02:50]} 7. Bb5 {[%clk 0:02:53]}  Qb6 {[%clk 0:02:40]} 8. Bxc6 {[%clk 0:02:51]}  Qxc6 {[%clk 0:02:39]} 9. d4 {[%clk 0:02:52]}  b6 {[%clk 0:02:37]} 10. Re1 {[%clk 0:02:49]}  h6 {[%clk 0:02:36]} 11. Na3 {[%clk 0:02:44]}  a5 {[%clk 0:02:33]} 12. Nc2 {[%clk 0:02:44]}  Ba6 {[%clk 0:02:33]} 13. h4 {[%clk 0:02:33]}  Qb5 {[%clk 0:02:31]} 14. Re3 {[%clk 0:02:09]}  Be7 {[%clk 0:02:31]} 15. Na3 {[%clk 0:02:07]}  Qc6 {[%clk 0:02:30]} 16. Nc2 {[%clk 0:02:08]}  a4 {[%clk 0:02:28]} 17. h5 {[%clk 0:02:01]}  O-O {[%clk 0:02:21]} 18. Nh2 {[%clk 0:01:59]}  Kh8 {[%clk 0:01:59]} 19. Rg3 {[%clk 0:01:47]}  Qb5 {[%clk 0:01:57]} 20. Qg4 {[%clk 0:01:34]}  Rg8 {[%clk 0:01:55]} 21. Ne3 {[%clk 0:01:06]}  Qe2 {[%clk 0:01:51]} 22. Nf3 {[%clk 0:01:06]}  cxd4 {[%clk 0:01:42]} 23. cxd4 {[%clk 0:01:05]}  Rac8 {[%clk 0:01:41]} 24. Bd2 {[%clk 0:01:05]}  Qd3 {[%clk 0:01:30]} 25. a3 {[%clk 0:00:57]}  Qe4 {[%clk 0:01:28]} 26. Bb4 {[%clk 0:00:52]}  Qxg4 {[%clk 0:01:25]} 27. Rxg4 {[%clk 0:00:52]}  Bd8 {[%clk 0:01:21]} 28. Rf4 {[%clk 0:00:52]}  f5 {[%clk 0:01:20]} 29. Nd1 {[%clk 0:00:22]}  Nf8 {[%clk 0:01:00]} 30. Ne1 {[%clk 0:00:20]}  Be2 {[%clk 0:00:56]} 31. Nc3 {[%clk 0:00:10]}  Bxh5 {[%clk 0:00:55]} 32. Nxa4 {[%clk 0:00:10]}  Ng6 {[%clk 0:00:52]} 33. Rf3 {[%clk 0:00:07]}  Bxf3 {[%clk 0:00:52]} 34. Nxf3 {[%clk 0:00:08]}  Nf4 {[%clk 0:00:51]} 35. Kf1 {[%clk 0:00:08]}  Nd3 {[%clk 0:00:48]} 36. Bc3 {[%clk 0:00:06]}  b5 {[%clk 0:00:46]} 37. Nc5 {[%clk 0:00:07]}  Nxc5 {[%clk 0:00:46]} 38. dxc5 {[%clk 0:00:07]}  Rxc5 {[%clk 0:00:47]} 39. Nd4 {[%clk 0:00:08]}  Re8 {[%clk 0:00:47]} 40. Ke2 {[%clk 0:00:09]}  Bb6 {[%clk 0:00:46]} 41. Kd3 {[%clk 0:00:09]}  Kg8 {[%clk 0:00:43]} 42. b4 {[%clk 0:00:09]}  Rxc3+ {[%clk 0:00:34]} 43. Kxc3 {[%clk 0:00:10]}  Rc8+ {[%clk 0:00:34]} 44. Kd3 {[%clk 0:00:11]}  Bxd4 {[%clk 0:00:35]} 45. Kxd4 {[%clk 0:00:12]}  Rc4+ {[%clk 0:00:34]} 46. Kd3 {[%clk 0:00:13]}  g5 {[%clk 0:00:33]} 47. a4 {[%clk 0:00:13]}  bxa4 {[%clk 0:00:32]} 48. Rxa4 {[%clk 0:00:14]}  Kf7 {[%clk 0:00:32]} 49. Ra7+ {[%clk 0:00:14]}  Kg6 {[%clk 0:00:33]} 50. Re7 {[%clk 0:00:15]}  f4 {[%clk 0:00:23]} 51. Rxe6+ {[%clk 0:00:15]}  Kf5 {[%clk 0:00:24]} 52. Rxh6 {[%clk 0:00:13]}  Rxb4 {[%clk 0:00:24]} 53. e6 {[%clk 0:00:13]}  Re4 {[%clk 0:00:22]} 54. e7 {[%clk 0:00:08]}  Rxe7 {[%clk 0:00:22]} 55. Rd6 {[%clk 0:00:08]}  Re5 {[%clk 0:00:22]} 56. Kd2 {[%clk 0:00:05]}  Ke4 {[%clk 0:00:18]} 57. Ra6 {[%clk 0:00:03]}  Kf5 {[%clk 0:00:18]} 58. Rd6 {[%clk 0:00:03]}  Kg4 {[%clk 0:00:18]} 59. Rf6 {[%clk 0:00:03]}  Rf5 {[%clk 0:00:18]} 60. Rd6 {[%clk 0:00:03]}  f3 {[%clk 0:00:17]} 61. g3 {[%clk 0:00:01]}  Re5 {[%clk 0:00:17]} 62. Rf6 {[%clk 0:00:01]}  Re2+ {[%clk 0:00:17]} 63. Kd3 {[%clk 0:00:02]}  Rxf2 {[%clk 0:00:17]} 64. Ke3 {[%clk 0:00:02]}  Re2+ {[%clk 0:00:17]} 65. Kd3 {[%clk 0:00:02]}  Kxg3 {[%clk 0:00:16]} 0-1


[Site "https://www.chess.com"]

[Event "Titled Tuesday Blitz March 22 Early 2022"]
[White "Mekhane, Adam"]
[Black "Janaszak, Dawid"]
[WhiteFideId "36050601"]
[BlackFideId "1119206"]
[WhiteElo "2002"]
[BlackElo "2199"]
[Result "0-1"]
[Round "05"]
[TimeControl "180+1"]
[Date "2022.03.22"]
[WhiteClock "0:00:39"]
[BlackClock "0:01:46"]

1. e4 {[%clk 0:03:00]}  c5 {[%clk 0:02:59]} 2. Nf3 {[%clk 0:02:55]}  Nc6 {[%clk 0:02:59]} 3. d4 {[%clk 0:02:52]}  cxd4 {[%clk 0:03:00]} 4. Nxd4 {[%clk 0:02:52]}  g6 {[%clk 0:03:01]} 5. c4 {[%clk 0:02:45]}  e5 {[%clk 0:03:00]} 6. Nb5 {[%clk 0:02:40]}  d6 {[%clk 0:03:01]} 7. Be3 {[%clk 0:02:34]}  a6 {[%clk 0:02:55]} 8. N5c3 {[%clk 0:02:33]}  Nf6 {[%clk 0:02:52]} 9. Be2 {[%clk 0:02:32]}  Bg7 {[%clk 0:02:52]} 10. O-O {[%clk 0:02:29]}  O-O {[%clk 0:02:50]} 11. f3 {[%clk 0:02:24]}  Be6 {[%clk 0:02:47]} 12. Qd2 {[%clk 0:02:24]}  Rc8 {[%clk 0:02:32]} 13. Rd1 {[%clk 0:02:23]}  Nd4 {[%clk 0:02:32]} 14. b3 {[%clk 0:02:19]}  Nh5 {[%clk 0:02:25]} 15. Na3 {[%clk 0:02:02]}  b5 {[%clk 0:02:22]} 16. cxb5 {[%clk 0:02:00]}  Rxc3 {[%clk 0:02:21]} 17. Bc4 {[%clk 0:01:24]}  Bxc4 {[%clk 0:02:13]} 18. Nxc4 {[%clk 0:01:02]}  axb5 {[%clk 0:02:12]} 19. Kh1 {[%clk 0:01:01]}  Rc2 {[%clk 0:01:51]} 20. Qb4 {[%clk 0:00:40]}  bxc4 {[%clk 0:01:50]} 21. bxc4 {[%clk 0:00:39]}  Nf4 {[%clk 0:01:46]} 0-1


[Site "https://www.chess.com"]

[Event "Titled Tuesday Blitz March 22 Early 2022"]
[White "Melikhov, Evgeny V."]
[Black "Ferreira, Vitor Hugo Vieira"]
[WhiteFideId "4122046"]
[BlackFideId "2119765"]
[WhiteElo "1945"]
[BlackElo "2165"]
[Result "0-1"]
[Round "05"]
[TimeControl "180+1"]
[Date "2022.03.22"]
[WhiteClock "0:00:04"]
[BlackClock "0:01:11"]

1. d4 {[%clk 0:03:00]}  d5 {[%clk 0:02:55]} 2. c4 {[%clk 0:03:00]}  c6 {[%clk 0:02:55]} 3. Nc3 {[%clk 0:03:00]}  Nf6 {[%clk 0:02:55]} 4. e3 {[%clk 0:03:00]}  e6 {[%clk 0:02:55]} 5. Nf3 {[%clk 0:02:59]}  Nbd7 {[%clk 0:02:55]} 6. Bd3 {[%clk 0:02:59]}  Bd6 {[%clk 0:02:54]} 7. O-O {[%clk 0:02:58]}  O-O {[%clk 0:02:54]} 8. e4 {[%clk 0:02:59]}  e5 {[%clk 0:02:54]} 9. cxd5 {[%clk 0:02:49]}  cxd5 {[%clk 0:02:53]} 10. dxe5 {[%clk 0:02:45]}  Nxe5 {[%clk 0:02:51]} 11. Nxe5 {[%clk 0:02:42]}  Bxe5 {[%clk 0:02:51]} 12. exd5 {[%clk 0:02:30]}  Bxc3 {[%clk 0:02:37]} 13. bxc3 {[%clk 0:02:29]}  Qxd5 {[%clk 0:02:37]} 14. Be2 {[%clk 0:02:21]}  Rd8 {[%clk 0:02:30]} 15. Qxd5 {[%clk 0:02:19]}  Nxd5 {[%clk 0:02:29]} 16. Bb2 {[%clk 0:02:11]}  Be6 {[%clk 0:02:26]} 17. Bf3 {[%clk 0:02:07]}  Rac8 {[%clk 0:02:24]} 18. Rfc1 {[%clk 0:02:01]}  b6 {[%clk 0:02:24]} 19. g3 {[%clk 0:01:57]}  h6 {[%clk 0:02:21]} 20. c4 {[%clk 0:01:54]}  Nb4 {[%clk 0:02:20]} 21. Be2 {[%clk 0:01:13]}  Rd2 {[%clk 0:02:18]} 22. Bc3 {[%clk 0:01:13]}  Rxe2 {[%clk 0:02:14]} 23. Bxb4 {[%clk 0:01:13]}  Rxc4 {[%clk 0:02:14]} 24. Rxc4 {[%clk 0:01:12]}  Bxc4 {[%clk 0:02:14]} 25. a4 {[%clk 0:01:06]}  a5 {[%clk 0:02:11]} 26. Bd6 {[%clk 0:01:04]}  Rb2 {[%clk 0:02:08]} 27. Be5 {[%clk 0:01:01]}  Rb4 {[%clk 0:02:06]} 28. Bd4 {[%clk 0:01:00]}  Bb3 {[%clk 0:02:05]} 29. Be3 {[%clk 0:00:59]}  Bxa4 {[%clk 0:02:04]} 30. Bxb6 {[%clk 0:00:58]}  Rxb6 {[%clk 0:02:03]} 31. Rxa4 {[%clk 0:00:58]}  Ra6 {[%clk 0:02:03]} 32. f4 {[%clk 0:00:57]}  Kf8 {[%clk 0:02:03]} 33. Kf2 {[%clk 0:00:58]}  Ke7 {[%clk 0:02:03]} 34. Ke3 {[%clk 0:00:58]}  Kd6 {[%clk 0:02:04]} 35. Kd4 {[%clk 0:00:58]}  Kc6 {[%clk 0:02:05]} 36. Kc4 {[%clk 0:00:38]}  Kb6 {[%clk 0:02:05]} 37. Ra3 {[%clk 0:00:31]}  Ra8 {[%clk 0:02:00]} 38. Re3 {[%clk 0:00:29]}  Rc8+ {[%clk 0:01:59]} 39. Kb3 {[%clk 0:00:29]}  Rc7 {[%clk 0:01:57]} 40. Ka4 {[%clk 0:00:29]}  Rc4+ {[%clk 0:01:57]} 41. Kb3 {[%clk 0:00:28]}  Rb4+ {[%clk 0:01:49]} 42. Ka3 {[%clk 0:00:28]}  Kc6 {[%clk 0:01:48]} 43. Re7 {[%clk 0:00:27]}  Rb7 {[%clk 0:01:49]} 44. Re5 {[%clk 0:00:26]}  Ra7 {[%clk 0:01:47]} 45. Ka4 {[%clk 0:00:26]}  f6 {[%clk 0:01:45]} 46. Rf5 {[%clk 0:00:22]}  Kd6 {[%clk 0:01:44]} 47. h4 {[%clk 0:00:21]}  Ke6 {[%clk 0:01:44]} 48. Rb5 {[%clk 0:00:20]}  f5 {[%clk 0:01:40]} 49. h5 {[%clk 0:00:17]}  Rd7 {[%clk 0:01:34]} 50. Kxa5 {[%clk 0:00:15]}  Rd3 {[%clk 0:01:33]} 51. Rb7 {[%clk 0:00:13]}  Kf6 {[%clk 0:01:32]} 52. Rb6+ {[%clk 0:00:12]}  Kf7 {[%clk 0:01:32]} 53. Rg6 {[%clk 0:00:12]}  Rd1 {[%clk 0:01:27]} 54. Kb5 {[%clk 0:00:12]}  Rh1 {[%clk 0:01:27]} 55. g4 {[%clk 0:00:11]}  fxg4 {[%clk 0:01:28]} 56. Rxg4 {[%clk 0:00:11]}  Rxh5+ {[%clk 0:01:28]} 57. Kc4 {[%clk 0:00:12]}  Kf6 {[%clk 0:01:25]} 58. Kd3 {[%clk 0:00:12]}  g6 {[%clk 0:01:24]} 59. Ke3 {[%clk 0:00:11]}  Kf5 {[%clk 0:01:24]} 60. Rg1 {[%clk 0:00:11]}  Rh4 {[%clk 0:01:22]} 61. Rf1 {[%clk 0:00:09]}  Rg4 {[%clk 0:01:19]} 62. Rf2 {[%clk 0:00:08]}  h5 {[%clk 0:01:19]} 63. Rf1 {[%clk 0:00:07]}  h4 {[%clk 0:01:20]} 64. Rf2 {[%clk 0:00:07]}  Rg3+ {[%clk 0:01:18]} 65. Ke2 {[%clk 0:00:06]}  Kg4 {[%clk 0:01:18]} 66. f5 {[%clk 0:00:05]}  gxf5 {[%clk 0:01:18]} 67. Kf1 {[%clk 0:00:05]}  f4 {[%clk 0:01:17]} 68. Ra2 {[%clk 0:00:04]}  h3 {[%clk 0:01:17]} 69. Ra8 {[%clk 0:00:05]}  h2 {[%clk 0:01:15]} 70. Rh8 {[%clk 0:00:04]}  Rg1+ {[%clk 0:01:15]} 71. Kf2 {[%clk 0:00:04]}  h1=Q {[%clk 0:01:15]} 72. Rg8+ {[%clk 0:00:03]}  Kf5 {[%clk 0:01:13]} 73. Rxg1 {[%clk 0:00:04]}  Qh2+ {[%clk 0:01:12]} 74. Rg2 {[%clk 0:00:04]}  Qh4+ {[%clk 0:01:12]} 75. Kf3 {[%clk 0:00:04]}  Qh3+ {[%clk 0:01:12]} 76. Kf2 {[%clk 0:00:05]}  Qe3+ {[%clk 0:01:11]} 77. Kf1 {[%clk 0:00:04]}  f3 {[%clk 0:01:11]} 78. Rf2 {[%clk 0:00:04]}  Qc1# {[%clk 0:01:11]} 0-1


[Site "https://www.chess.com"]

[Event "Titled Tuesday Blitz March 22 Early 2022"]
[White "Mena, Ailen Oriana"]
[Black "Mirzanurov, Bulat"]
[WhiteFideId "3902773"]
[BlackFideId "4184521"]
[WhiteElo "1534"]
[BlackElo "2116"]
[Result "0-1"]
[Round "05"]
[TimeControl "180+1"]
[Date "2022.03.22"]
[WhiteClock "0:00:02"]
[BlackClock "0:00:19"]

1. e4 {[%clk 0:03:00]}  c5 {[%clk 0:02:59]} 2. c3 {[%clk 0:02:59]}  Nf6 {[%clk 0:02:58]} 3. e5 {[%clk 0:02:58]}  Nd5 {[%clk 0:02:58]} 4. d4 {[%clk 0:02:56]}  cxd4 {[%clk 0:02:58]} 5. cxd4 {[%clk 0:02:51]}  d6 {[%clk 0:02:58]} 6. Nf3 {[%clk 0:02:46]}  Nc6 {[%clk 0:02:58]} 7. Bc4 {[%clk 0:02:45]}  Nb6 {[%clk 0:02:58]} 8. Bb5 {[%clk 0:02:45]}  dxe5 {[%clk 0:02:57]} 9. Nxe5 {[%clk 0:02:46]}  Bd7 {[%clk 0:02:56]} 10. Nxd7 {[%clk 0:02:46]}  Qxd7 {[%clk 0:02:56]} 11. Nc3 {[%clk 0:02:46]}  e6 {[%clk 0:02:56]} 12. O-O {[%clk 0:02:45]}  Be7 {[%clk 0:02:39]} 13. Qg4 {[%clk 0:02:37]}  O-O {[%clk 0:02:25]} 14. Bxc6 {[%clk 0:02:23]}  bxc6 {[%clk 0:01:38]} 15. Bh6 {[%clk 0:02:03]}  Bf6 {[%clk 0:01:37]} 16. Rfd1 {[%clk 0:02:03]}  Kh8 {[%clk 0:01:06]} 17. Ne4 {[%clk 0:01:54]}  gxh6 {[%clk 0:01:06]} 18. Nxf6 {[%clk 0:01:52]}  Qe7 {[%clk 0:01:06]} 19. Qf4 {[%clk 0:01:23]}  Nd5 {[%clk 0:00:57]} 20. Nxd5 {[%clk 0:01:20]}  cxd5 {[%clk 0:00:57]} 21. Qxh6 {[%clk 0:01:20]}  Rg8 {[%clk 0:00:57]} 22. Rd3 {[%clk 0:01:13]}  Rg6 {[%clk 0:00:57]} 23. Qf4 {[%clk 0:01:01]}  Rag8 {[%clk 0:00:53]} 24. Rg3 {[%clk 0:00:53]}  Rxg3 {[%clk 0:00:44]} 25. hxg3 {[%clk 0:00:54]}  Rc8 {[%clk 0:00:41]} 26. Rc1 {[%clk 0:00:48]}  Rxc1+ {[%clk 0:00:40]} 27. Qxc1 {[%clk 0:00:49]}  Qb4 {[%clk 0:00:40]} 28. Qc3 {[%clk 0:00:42]}  Qa4 {[%clk 0:00:34]} 29. f3 {[%clk 0:00:15]}  Qxa2 {[%clk 0:00:33]} 30. Qc8+ {[%clk 0:00:11]}  Kg7 {[%clk 0:00:33]} 31. Qc7 {[%clk 0:00:05]}  Qb1+ {[%clk 0:00:26]} 32. Kh2 {[%clk 0:00:03]}  Qxb2 {[%clk 0:00:25]} 33. Qxa7 {[%clk 0:00:02]}  Qd2 {[%clk 0:00:20]} 34. Qc5 {[%clk 0:00:02]}  h5 {[%clk 0:00:19]} 0-1


[Site "https://www.chess.com"]

[Event "Titled Tuesday Blitz March 22 Early 2022"]
[White "Migot, Tangi"]
[Black "Dronavalli, Harika"]
[WhiteFideId "662445"]
[BlackFideId "5015197"]
[WhiteElo "2506"]
[BlackElo "2382"]
[Result "0-1"]
[Round "05"]
[TimeControl "180+1"]
[Date "2022.03.22"]
[WhiteClock "0:00:01"]
[BlackClock "0:00:37"]

1. Nf3 {[%clk 0:02:32]}  Nf6 {[%clk 0:02:59]} 2. e3 {[%clk 0:02:32]}  g6 {[%clk 0:02:58]} 3. h4 {[%clk 0:02:32]}  h5 {[%clk 0:02:56]} 4. b3 {[%clk 0:02:30]}  Bg7 {[%clk 0:02:56]} 5. Bb2 {[%clk 0:02:31]}  d6 {[%clk 0:02:56]} 6. d3 {[%clk 0:02:29]}  c5 {[%clk 0:02:56]} 7. Nbd2 {[%clk 0:02:30]}  Nc6 {[%clk 0:02:56]} 8. g3 {[%clk 0:02:30]}  e5 {[%clk 0:02:55]} 9. Bg2 {[%clk 0:02:30]}  O-O {[%clk 0:02:55]} 10. Ng5 {[%clk 0:02:26]}  d5 {[%clk 0:02:44]} 11. O-O {[%clk 0:02:06]}  Re8 {[%clk 0:02:37]} 12. c4 {[%clk 0:01:49]}  Bg4 {[%clk 0:02:22]} 13. Qb1 {[%clk 0:01:35]}  Qd7 {[%clk 0:01:48]} 14. cxd5 {[%clk 0:01:28]}  Nxd5 {[%clk 0:01:47]} 15. Nde4 {[%clk 0:01:23]}  b6 {[%clk 0:01:41]} 16. a3 {[%clk 0:01:11]}  Rad8 {[%clk 0:01:40]} 17. Rc1 {[%clk 0:01:06]}  a5 {[%clk 0:01:25]} 18. Qc2 {[%clk 0:00:54]}  Nc7 {[%clk 0:01:24]} 19. f3 {[%clk 0:00:47]}  Bf5 {[%clk 0:01:22]} 20. Rd1 {[%clk 0:00:38]}  f6 {[%clk 0:01:13]} 21. Qc4+ {[%clk 0:00:38]}  Nd5 {[%clk 0:01:13]} 22. Nf2 {[%clk 0:00:20]}  fxg5 {[%clk 0:01:09]} 23. e4 {[%clk 0:00:16]}  Be6 {[%clk 0:01:09]} 24. exd5 {[%clk 0:00:17]}  Bxd5 {[%clk 0:01:10]} 25. Qc2 {[%clk 0:00:16]}  gxh4 {[%clk 0:01:09]} 26. gxh4 {[%clk 0:00:17]}  Qe7 {[%clk 0:01:10]} 27. Ne4 {[%clk 0:00:15]}  Qxh4 {[%clk 0:01:09]} 28. Qf2 {[%clk 0:00:15]}  Qf4 {[%clk 0:01:09]} 29. Bc1 {[%clk 0:00:14]}  Qf5 {[%clk 0:01:08]} 30. Be3 {[%clk 0:00:13]}  Nd4 {[%clk 0:01:07]} 31. Bxd4 {[%clk 0:00:13]}  exd4 {[%clk 0:01:07]} 32. Qg3 {[%clk 0:00:13]}  Be5 {[%clk 0:01:06]} 33. Qh4 {[%clk 0:00:09]}  Kg7 {[%clk 0:01:02]} 34. Rf1 {[%clk 0:00:09]}  Qf4 {[%clk 0:01:02]} 35. Qxf4 {[%clk 0:00:08]}  Bxf4 {[%clk 0:01:02]} 36. b4 {[%clk 0:00:08]}  Be3+ {[%clk 0:01:01]} 37. Kh2 {[%clk 0:00:08]}  Bf4+ {[%clk 0:00:56]} 38. Kg1 {[%clk 0:00:07]}  cxb4 {[%clk 0:00:55]} 39. axb4 {[%clk 0:00:08]}  axb4 {[%clk 0:00:55]} 40. Rfb1 {[%clk 0:00:08]}  Bxe4 {[%clk 0:00:52]} 41. fxe4 {[%clk 0:00:07]}  Bd6 {[%clk 0:00:51]} 42. Ra7+ {[%clk 0:00:05]}  Re7 {[%clk 0:00:51]} 43. Ra6 {[%clk 0:00:04]}  Bc5 {[%clk 0:00:51]} 44. e5 {[%clk 0:00:03]}  Rxe5 {[%clk 0:00:49]} 45. Be4 {[%clk 0:00:04]}  Kh6 {[%clk 0:00:48]} 46. Rf1 {[%clk 0:00:03]}  Rg5+ {[%clk 0:00:47]} 47. Kh1 {[%clk 0:00:02]}  Rg4 {[%clk 0:00:46]} 48. Rf7 {[%clk 0:00:02]}  Re8 {[%clk 0:00:39]} 49. Ra1 {[%clk 0:00:02]}  Re5 {[%clk 0:00:38]} 50. Raa7 {[%clk 0:00:01]}  b3 {[%clk 0:00:37]} 0-1


[Site "https://www.chess.com"]